Cogmind - Beta 16.1 @@@ ROGUE MODE // 2026.03.03 @ 18:12:07 Player: gamerman Result: Destroyed by as-34040 with Assembled Heavy Rifle Performance ------------- Evolutions (1) 500 Regions Visited (4) 800 Robots Destroyed (28) 140 Value Destroyed (552) 552 Prototype IDs (0) 0 Alien Tech Used (0) 0 Bonus (0) 0 TOTAL SCORE: 1992 Bonus ------- None Cogmind --------- Core Integrity 0/400 Matter 97/300 Energy 98/100 System Corruption 3% Temperature Cool (0) Movement Core (50) Location -9/Mines Parts ------- > --- POWER (1) -------- (None) > --- PROPULSION (3) --- (None) > --- UTILITY (3) ------ (None) > --- WEAPON (2) ------- (None) > --- INVENTORY (5) ---- Light Ion Engine Improved Ion Engine Improved Ion Engine Peak State ------------ > --- POWER ------------ Ion Engine > --- PROPULSION ------- Flight Unit Flight Unit > --- UTILITY ---------- Heat Sink Small Storage Unit > --- WEAPON ----------- EM Pulse Gun EM Pulse Gun > --- INVENTORY -------- Light Ion Engine Light Ion Engine Light Treads Light Treads Flight Unit Grenade Launcher [Rating: 7] Favorites ----------- Power Ion Engine Engine Ion Engine Propulsion Flight Unit Wheel Wheel Flight Unit Flight Unit Utility Small Storage Unit Device Heat Sink Storage Small Storage Unit Weapon EM Pulse Gun Energy Gun EM Pulse Gun Ballistic Gun Assault Rifle Launcher Grenade Launcher Build | -11 -10 -10 -9 -9 ------- Run | Yrd Mat Min Mat Min Slots Evolved 2 | . . . 2 . Power . | . . . . . Propulsion 1 | . . . 1 . Utility 1 | . . . 1 . Weapon . | . . . . . Parts Attached 24 | 8 1 8 5 2 Power 4 | 2 . 1 1 . Engine 4 | 2 . 1 1 . Core . | . . . . . Reactor . | . . . . . Propulsion 12 | 2 . 5 4 1 Treads . | . . . . . Leg . | . . . . . Wheel 2 | 2 . . . . Hover . | . . . . . Flight 10 | . . 5 4 1 Utility 2 | 1 . 1 . . Device 1 | . . 1 . . Storage 1 | 1 . . . . Processor . | . . . . . Hackware . | . . . . . Protection . | . . . . . Artifact . | . . . . . Weapon 6 | 3 1 1 . 1 Energy Gun 2 | 2 . . . . Energy Cannon . | . . . . . Ballistic Gun 2 | 1 . . . 1 Ballistic Cannon . | . . . . . Launcher 2 | . 1 1 . . Special Weapon . | . . . . . Impact Weapon . | . . . . . Slashing Weapon . | . . . . . Piercing Weapon . | . . . . . Special Melee Weapon . | . . . . . Unidentified Prototypes . | . . . . . Parts Lost 15 | . 1 4 6 4 Power 1 | . . . 1 . Propulsion 11 | . 1 3 4 3 Utility . | . . . . . Weapon 3 | . . 1 1 1 Highest Loss Streak 6 | . 1 2 6 4 To Critical Strikes . | . . . . . Average Backups 5 | 1 5 6 4 2 Power 1 | . 1 1 1 2 Propulsion 2 | 1 2 3 2 . Utility . | . . . . . Weapon 1 | . 1 1 1 . Tool/Special . | . . . . . Unused Backups 5 | . . 2 2 1 Power 1 | . . . . 1 Propulsion 4 | . . 2 2 . Utility . | . . . . . Weapon . | . . . . . Tool/Special . | . . . . . Average Slot Usage (%) 63 | . 80 64 40 45 Engine 12 | . 14 14 8 9 Wheel 6 | . 23 3 . . Flight 11 | . . 10 23 28 Device 2 | . . 4 . . Storage 9 | . 14 10 . . Energy Gun 6 | . 1 9 . . Ballistic Gun 5 | . 13 3 . 7 Launcher 7 | . 13 6 8 . Peak Build Rating 7 | 6 6 7 5 6 Average Rating 4 | 4 5 4 4 4 On Entrance 4 | . 6 5 5 4 Avg Prop Armor Cover (%) . | . . . . . Naked Turns 8 | . . . 2 6 Heaviest Build 15 | 14 15 15 7 8 Greatest Support 20 | 20 20 10 12 12 Greatest Overweight (x) 4 | 1 1 4 1 . Average Overweight (x) . | . . . . . Largest Inventory Capacity 8 | 8 8 8 5 5 Average Capacity 6 | 5 8 7 5 5 Most Carried 8 | 4 8 8 5 3 Average Carried 5 | 2 5 6 4 2 Final Capacity 8 | 8 8 5 5 5 Final Carried 8 | 4 8 5 4 3 Class Distribution -------------------- 100% | Mutant Dominant Class ---------------- Mutant | -10/Materials Mutant | -10/Mines Mutant | -9/Materials Mutant | -9/Mines Resources | -11 -10 -10 -9 -9 ----------- Run | Yrd Mat Min Mat Min Matter Collected 494 | 179 5 187 60 63 Remotely . | . . . . . Salvage Created 516 | . 253 174 65 24 Parts 49 | . 24 20 4 1 Haulers Intercepted 1 | . . . 1 . Recyclers Shooed . | . . . . . Parts Field Recycled . | . . . . . Retrieved Matter . | . . . . . Parts Self-Destructed . | . . . . . Prevented . | . . . . . Parts Restored . | . . . . . Kills | -11 -10 -10 -9 -9 ------- Run | Yrd Mat Min Mat Min Combat Hostiles Destroyed 18 | . 9 9 . . Guns 5 | . 1 4 . . AOE 13 | . 8 5 . . Classes Destroyed 7 | . 5 . 2 . Worker 3 | . 1 1 . 1 Tunneler 2 | . 1 1 . . Hauler 1 | . . . 1 . Mechanic 1 | . . . 1 . Watcher 3 | . 2 . 1 . Swarmer 9 | . 3 6 . . Grunt 9 | . 6 3 . . Best Kill Streak 11 | . 11 4 3 1 Combat Bots Only 8 | . 8 3 . . Max Kills in Single Turn 3 | . 2 3 3 1 Gunslinging . | . . . . . Exploded 2 | . 2 2 . . Melee . | . . . . . Uniques/NPCs Destroyed . | . . . . . Combat | -11 -10 -10 -9 -9 -------- Run | Yrd Mat Min Mat Min Hostile Shots Fired 159 | . 24 35 73 27 Missed 64 | . 8 8 43 5 Hits 95 | . 16 27 30 22 Melee 5 | . . . . 5 Projectile 90 | . 16 27 30 17 AOE 3 | . . . . 3 Damage Taken 1297 | . 282 298 241 476 Core 572 | . 74 93 67 338 Absorbed by Shields . | . . . . . Core Remaining (%) 66 | 100 . 33 . . Volleys Fired 49 | . 15 22 1 11 Largest 2 | . 2 2 1 1 Hottest 80 | . 50 80 33 20 Shots Fired 70 | . 28 30 1 11 Gun 45 | . 14 20 . 11 Cannon . | . . . . . Launcher 25 | . 14 10 1 . Special . | . . . . . Kinetic 29 | . 14 4 . 11 Thermal . | . . . . . Explosive 25 | . 14 10 1 . Electromagnetic 16 | . . 16 . . Robot Hit Streak 6 | . 6 5 . 6 Robot Miss Streak 3 | . 1 3 . 1 Penetration Max . | . . . . . Secondary Targets 2 | . . 2 . . Max Gunslinging Chain 1 | . . 1 . . Shots Hit Robots 30 | . 7 14 . 9 Core Hits 42 | . 22 13 5 2 Critical Kills . | . . . . . Critical Parts Destroyed . | . . . . . Critical Strikes . | . . . . . Melee Attacks . | . . . . . Impact . | . . . . . Slashing . | . . . . . Piercing . | . . . . . Sneak Attacks . | . . . . . Combat Hostiles . | . . . . . Follow-up Attacks . | . . . . . Damage Inflicted 1768 | . 738 750 203 77 Guns 308 | . 75 159 . 74 Cannons . | . . . . . Explosions 1451 | . 663 586 202 . Melee . | . . . . . Ramming 9 | . . 5 1 3 Kinetic 190 | . 75 41 . 74 Thermal . | . . . . . Explosive 1451 | . 663 586 202 . Electromagnetic 118 | . . 118 . . Impact . | . . . . . Slashing . | . . . . . Piercing . | . . . . . Highest Corruption 3 | . . . . 3 Average Corruption 3 | . . . . 3 Corruption Purged . | . . . . . Corruption Blocked . | . . . . . Overload Shots . | . . . . . Overflow Damage 10 | . 7 3 . . Projectiles . | . . . . . Explosions 10 | . 7 3 . . Melee . | . . . . . Knockbacks . | . . . . . Impact . | . . . . . Kinetic . | . . . . . Secondary . | . . . . . Self-Inflicted Damage 119 | . 84 34 . 1 Shots 5 | . 4 1 . . Rammed 6 | . . 4 1 1 Targets Rammed 6 | . . 4 1 1 Kicked . | . . . . . Crushed . | . . . . . Highest Temperature 18 | . 10 18 . 12 Average Temperature 4 | . 3 6 . 3 Received Heat Transfer 232 | . 105 87 . 40 Siege Activations . | . . . . . Martial Activations . | . . . . . Shielding Activations . | . . . . . Robots Disrupted . | . . . . . Combat Hostiles . | . . . . . Robots Corrupted . | . . . . . Combat Hostiles . | . . . . . Parts Fried . | . . . . . Impact Corruptions . | . . . . . Robots Melted . | . . . . . Combat Hostiles . | . . . . . Parts Melted . | . . . . . Heat Transferred . | . . . . . Parts Sabotaged . | . . . . . Parts Stolen . | . . . . . Parts Stripped . | . . . . . Power Chain Reactions . | . . . . . Alert | -11 -10 -10 -9 -9 ------- Run | Yrd Mat Min Mat Min Maximum Alert Level 1 | . 1 . . . Low Security (%) 93 | 100 64 100 100 100 Level 1 6 | . 35 . . . Level 2 . | . . . . . Level 3 . | . . . . . Level 4 . | . . . . . Level 5 . | . . . . . High Security . | . . . . . Max Security . | . . . . . Peak Influence 305 | . 305 191 147 30 Initial 118 | . . 118 70 25 Average 86 | . 136 90 82 17 Influence Increases 780 | . 375 303 97 5 Destroy 0b10 Robot/C 360 | . 180 180 . . Destroy 0b10 Robot/NC 50 | . 20 10 15 5 Destroy Leader 78 | . 34 40 4 . Successful Hack 20 | . 7 . 13 . Select Force Hacks 30 | . 30 . . . Disable Machine 75 | . 30 . 45 . Destroy Structure 122 | . 59 58 5 . Partial Spotted 15 | . 15 . . . Lose Combat Pursuer 30 | . . 15 15 . Influence Decreases 780 | . 70 425 213 72 Entered New Map 342 | . . 187 113 42 Time Decay 318 | . 60 198 40 20 Lost Part 120 | . 10 40 60 10 Squads Dispatched 4 | . 3 1 . . Investigation 2 | . 1 1 . . Extermination . | . . . . . Reinforcement 2 | . 2 . . . Assault . | . . . . . Garrison . | . . . . . Intercept . | . . . . . Searches Triggered . | . . . . . Construction Impeded . | . . . . . Haulers Reinforced . | . . . . . Active Scanning Responses . | . . . . . Cargo Convoy Interrupts . | . . . . . Stealth | -11 -10 -10 -9 -9 --------- Run | Yrd Mat Min Mat Min Distress Signals 1 | . . . 1 . Communications Jammed . | . . . . . Distress Signals . | . . . . . Times Spotted 52 | . 12 12 10 18 Peak Tracking Total 14 | . 5 3 8 14 Tactical Retreats 3 | . . 1 1 1 Traps | -11 -10 -10 -9 -9 ------- Run | Yrd Mat Min Mat Min Traps Triggered . | . . . . . Indirectly . | . . . . . Trap Hack Attempts . | . . . . . Triggered . | . . . . . Disarmed . | . . . . . Reprogrammed . | . . . . . Reused . | . . . . . Traps Extracted . | . . . . . Installed . | . . . . . Triggered . | . . . . . Machines | -11 -10 -10 -9 -9 ---------- Run | Yrd Mat Min Mat Min Machines Disabled 8 | . 5 . 3 . Max in Single Turn 3 | . 3 . 3 . Machines Repaired . | . . . . . Machines Dismantled . | . . . . . Machines Sabotaged . | . . . . . Overloaded Fab Kills . | . . . . . Hacking | -11 -10 -10 -9 -9 --------- Run | Yrd Mat Min Mat Min Machines Accessed 6 | . 2 1 3 . Terminals 5 | . 1 1 3 . Fabricators . | . . . . . Repair Stations . | . . . . . Recycling Units 1 | . 1 . . . Scanalyzers . | . . . . . Garrison Access . | . . . . . Total Hacks 15 | . 4 3 8 . Successful 7 | . 3 . 4 . Failed 8 | . 1 3 4 . Catastrophic 2 | . . 1 1 . Database Lockouts . | . . . . . Manual 14 | . 4 3 7 . Terminals 13 | . 2 3 8 . Fabricators . | . . . . . Repair Stations . | . . . . . Recycling Units 2 | . 2 . . . Scanalyzers . | . . . . . Garrison Access . | . . . . . Terminal Hacks 1 | . . . 1 . Branch Access Points 1 | . . . 1 . Fabricator Hacks . | . . . . . Repair Station Hacks . | . . . . . Recycling Unit Hacks . | . . . . . Scanalyzer . | . . . . . Garrison Access Hacks . | . . . . . Unauthorized Hacks 5 | . 2 . 3 . Terminals 4 | . 1 . 3 . Assimilate 1 | . . . 1 . Botnet 3 | . 1 . 2 . Fabricators . | . . . . . Repair Stations . | . . . . . Recycling Units 1 | . 1 . . . Tunnel 1 | . 1 . . . Scanalyzers . | . . . . . Garrison Access . | . . . . . Data Cores Recovered . | . . . . . Used . | . . . . . Hacking Detections 5 | . 1 1 3 . Full Trace Events 1 | . . 1 . . Feedback Events . | . . . . . Feedback Blocked . | . . . . . Robot Schematics Acquired . | . . . . . Robots Built . | . . . . . Authchips . | . . . . . Time . | . . . . . Total Robot Build Rating . | . . . . . Part Schematics Acquired . | . . . . . Parts Built . | . . . . . Authchips . | . . . . . Time . | . . . . . Total Part Build Rating . | . . . . . Part Studies Acquired . | . . . . . Parts Repaired . | . . . . . Time . | . . . . . Parts Recycled . | . . . . . Recycled Matter . | . . . . . Retrieved Matter . | . . . . . Retrieved Components . | . . . . . Parts Scanalyzed . | . . . . . Part Schematics Acquired . | . . . . . Parts Damaged . | . . . . . Bothacking | -11 -10 -10 -9 -9 ------------ Run | Yrd Mat Min Mat Min Used RIF Installer . | . . . . . Robots Hacked . | . . . . . Non-combat . | . . . . . Combat . | . . . . . Robot Hacks Applied . | . . . . . Relay Couplers Released . | . . . . . Fabnet Peak Effective % . | . . . . . Robots Rewired . | . . . . . Allies Hacked . | . . . . . Hacks Repelled . | . . . . . Allies | -11 -10 -10 -9 -9 -------- Run | Yrd Mat Min Mat Min Total Allies . | . . . . . Largest Group . | . . . . . Highest-Rated Group . | . . . . . Highest-Rated Ally . | . . . . . Total Orders . | . . . . . Ally Attacks . | . . . . . Total Damage . | . . . . . Kills . | . . . . . Allies Corrupted . | . . . . . Allies Melted . | . . . . . Intel | -11 -10 -10 -9 -9 ------- Run | Yrd Mat Min Mat Min Active Infowar (turns) . | . . . . . Robot Analysis Total . | . . . . . Derelict Logs Recovered 2 | . . 2 . . Drone Launches . | . . . . . Drone Recoveries . | . . . . . Exploration | -11 -10 -10 -9 -9 ------------- Run | Yrd Mat Min Mat Min Turns Passed 731 | 51 138 401 86 55 Spaces Moved 858 | 47 104 431 193 83 Core 81 | 10 . 46 2 23 Treads . | . . . . . Legs . | . . . . . Wheels 226 | 37 104 85 . . Hover . | . . . . . Flight 551 | . . 300 191 60 Fastest Speed 34 | 50 80 37 34 34 Average Speed 62 | 77 84 71 37 38 Slowest Speed 250 | 100 95 250 100 50 Overloaded Moves . | . . . . . Propulsion Burnouts . | . . . . . Robots Hopped 18 | . . 12 6 . Potential Cave-ins . | . . . . . Cave-ins Triggered . | . . . . . Exploration Rate (%) 29 | 3 29 70 23 20 Regions Visited 4 Branch Regions 2 Pre-discovered Areas 3 | . 1 2 . . Known Exits Taken 1 | . . . 1 . Unknown Exits Taken 3 | 1 1 1 . . Scrap Searched 1 | . . 1 . . Spaces Dug 17 | . 4 13 . . Terrain Destroyed 128 | . 56 67 5 . Melee . | . . . . . Projectile . | . . . . . AOE 128 | . 56 67 5 . Terrain Rammed . | . . . . . Walls Destroyed . | . . . . . Machines Disabled . | . . . . . Actions | -11 -10 -10 -9 -9 --------- Run | Yrd Mat Min Mat Min Total 959 | 57 124 482 198 98 Wait 8 | . . 7 1 . Move 820 | 46 103 408 180 83 Hop 16 | . . 10 6 . Pick Up 19 | 3 4 10 2 . Fast Attach 11 | 6 . 1 4 . Attach 9 | . . 6 1 2 Detach 1 | . . . . 1 Swap 7 | 2 2 3 . . Drop 13 | . . 11 2 . Fire 49 | . 15 22 1 11 Melee . | . . . . . Ram 6 | . . 4 1 1 Kick . | . . . . . Crush . | . . . . . Escape Stasis . | . . . . . Rewire . | . . . . . Trap . | . . . . . Miscellaneous . | . . . . . Route ------- -11/Scrapyard -10/Materials -10/Mines (discovered 2 exits: *Mat / [*Sub]) -9/Materials (discovered 2 exits: *Min x2) -9/Mines History --------- Turn | Location | Event 16 | -11/Scrapyard | Discovered new exit (range 15) 52 | -11/Scrapyard | Entered Materials 118 | -10/Materials | Discovered new exit (range 13) 171 | -10/Materials | Destroyed 8 combat bots 190 | -10/Materials | Entered Mines 242 | -10/Mines | Learned location of Zion (-6) 327 | -10/Mines | Build established: Mutant 456 | -10/Mines | Discovered new exit (range 6) 468 | -10/Mines | Learned location of Storage (-7) 506 | -10/Mines | Received a Rocket Launcher from a helpful Derelict 549 | -10/Mines | Core integrity fell below 50% 588 | -10/Mines | Discovered new exit (range 3) 591 | -10/Mines | Entered Materials 591 | -9/Materials | Evolved 2 slots: Propulsion x1, Utility x1 599 | -9/Materials | Identified exit to Mines 677 | -9/Materials | Entered Mines 687 | -9/Mines | Assembled infested the area 692 | -9/Mines | Assisted by a Guerilla fighting off Assembled 708 | -9/Mines | Lost 6 parts (1p4n1w) 728 | -9/Mines | Core integrity fell below 50% 731 | -9/Mines | Core integrity fell below 20% 732 | -9/Mines | Destroyed by as-34040 with Assembled Heavy Rifle Last Messages --------------- GOAL=ESCAPE 00678_ K-01 Serf collects debris. 00682_ K-01 Serf cleans the Plasma Injector. 00686_ K-01 Serf destroyed. 00687_ ALERT: Infestation in the mines, dispatching Demolisher response squad. 00688_ Acquired 24 matter. 00706_ CX-9RT(h): "I'll hold them off! Go on ahead or try to find another way!" 00711_ Acquired 27 matter. 00720_ C-45 Heavy ARC bursts open, deploying its payload. 00720_ D-53 Grenadier unfolds itself. 00720_ Flight Unit destroyed. 00726_ Lgt. Assault Rifle destroyed. 00726_ System corrupted by crushing effect (+3). 00726_ Knocked back. 00727_ Slammed into as-47947. 00729_ Acquired 1 matter. 00732_ Acquired 11 matter. Map ----- +----------------------------------------------------+ | | | | | | | | | | | ?????????????????????????????????????????????? | | ?????????????????????????????????????????????? | | ?????????????????????????????????????????????? | | ??????????????????????????????????????##?###?? | | ???????????????????????????????????### ## #?? | | ???????????????????????????????????# ### | | ???????????????????????????????????# # | | ??????????????????????#####???????## | | ?????????????????????## #?????### | | ?????????????????????# #?????# | | ?????????????????????# ##???## | | ?????????????????????## ##### " | | ??????????????????????## ###"%" | | ???????????????????????## ##??## | | ????????????????????????### # ###?????? | | ??????????????????????##??## #####????????? | | ??????????????????????? ##?## #????????????? | | ???????????????????????# #??## #????????????? | | ??????????? ??????????##"##??# #????????????? | | ?????????# a ####### % #### #???????????? | | ?????????# a @ aaaaa a #????????????? | | ????????# a a * #????????????? | | ???????# ######### a ####????????????? | | ???????# ????????????## a ##???????????????? | | ????????????????????????###%#????????????????? | | ??????????????????????????# #????????????????? | | ??????????????????????????# #????????????????? | | ??????????????????????????# #????????????????? | | ??????????????????????????# #????????????????? | | ??????????????????????????# #????????????????? | | ??????????????????######### #????????????????? | | ??????????????????# = #????????????????? | | ??????????????????# #########????????????????? | | ??????????????????# #????????????????????????? | | ?????????????????## #####????????????????????? | | ?????????????????# #????????????????????? | | ?????????????????# #????????????????????? | | ?????????????????# """ #????????????????????? | | ?????????????????# """ #????????????????????? | | ?????????????????# """ #????????????????????? | | ?????????????????# #????????????????????? | | ?????????????????# #????????????????????? | | ?????????????????#######?????????????????????? | | ?????????????????????????????????????????????? | | ?????????????????????????????????????????????? | +----------------------------------------------------+ Best States ------------- Heat Dissipation 35 Energy Generation 12 Energy Capacity 265 Matter Stores 179 Matter Capacity 300 Sight Range 16 Terrain Scan Density 10 Evasion (%) 63 Item Schematics ----------------- None Robot Schematics ------------------ None Fabricated ------------ Nothing Repaired ---------- Nothing Studied --------- None Alien Tech Used ----------------- None Achievements -------------- None Challenges ------------ None Game ------ Seed MobileBarrageSheargun Manual? 0 Play Time 00:15:09 Cumulative 29.9 hours Start 2026.03.03 @ 17:58:17 End 2026.03.03 @ 18:12:07 Sessions 1 Manual Loads 0 Difficulty Rogue Special Mode None Game No. 36 Rogue 36 Adventurer 0 Explorer 0 Win Type - Total 1 Types 1/0/0/0/0/0/0/0/0/0 Lore% 31 Gallery% 28 Achievement% 23 Wizard Run 0 Options --------- Layout 1 ASCII 0 Keyboard 0 Movement Vi Keybinds 0 Fullscreen 1 Font 24/Smallcaps Map View 50x35 Zoom Use 0% Tactical HUD 1 Map Filters NONE Filters NONE Steam 1 RUN: 80bf7b95-15ec-4f5e-becc-c275baaea040